[Event "1000GM NY Winter IM-C 2024"]
[Site "New York"]
[Date "2024.01.12"]
[Round "2.5"]
[White "Tanenbaum, Zachary"]
[Black "Pressman, Leif"]
[Result "0-1"]
[ECO "B90"]
[WhiteElo "2272"]
[BlackElo "2258"]
[Annotator "RC"]
[PlyCount "110"]
[EventDate "2024.01.10"]
[EventType "swiss"]
[EventCountry "USA"]
[SourceTitle "playchess.com"]
[Source "ChessBase"]
[SourceQuality "1"]
[TimeControl "5400+30"]

1. e4 {[%emt 0:38:05]} c5 {[%emt 0:00:39]} 2. Nf3 {[%emt 0:00:09]} d6 {[%emt 0:00:16]} 3. d4 {[%emt 0:00:05]} cxd4 {[%emt 0:00:04]} 4. Nxd4 {[%emt 0:00:04]} Nf6 {[%emt 0:00:07]} 5. Nc3 {[%emt 0:00:04]} a6 {[%emt 0:00:23]} 6. Be3 {[%emt 0:00:04]} e5 {[%emt 0:00:19]} 7. Nb3 {[%emt 0:00:05]} Be6 {[%emt 0:00:16]} 8. h3 {[%emt 0:00:05]} Be7 {[%emt 0:00:30]} 9. Qf3 {[%emt 0:00:17]} Qc7 {[%emt 1:32:26]} 10. O-O-O {[%emt 0:56:32]} Nc6 {[%emt 0:00:30]} 11. Kb1 {[%emt 0:00:30]} O-O {[%emt 0:00:30]} 12. g4 {[%emt 0:00:30]} a5 {[%emt 0:00:30]} 13. a4 {[%emt 0:00:30]} Nb4 {[%emt 0:00:30]} 14. g5 {[%emt 0:00:30]} Ne8 {[%emt 0:00:30]} 15. h4 {[%emt 0:00:30]} Rd8 {[%emt 0:00:30]} 16. Bc1 {[%emt 0:00:30]} f5 {[%emt 0:00:30]} 17. Bh3 {[%emt 0:00:30]} d5 {[%emt 0:00:30]} 18. exf5 {[%emt 0:00:30]} d4 {[%emt 0:00:30]} 19. f6 {[%emt 0:00:30]} Bxb3 {[%emt 0:00:30]} 20. cxb3 {[%emt 0:00:30]} Nxf6 {[%emt 0:00:30]} 21. gxf6 {[%emt 0:00:30]} Rxf6 {[%emt 0:00:30]} 22. Qg3 {[%emt 0:00:30]} dxc3 {[%emt 0:00:30]} 23. bxc3 {[%emt 0:00:30]} Nd5 {[%emt 0:00:30]} 24. Bb2 {[%emt 0:00:30]} Nf4 {[%emt 0:00:30]} 25. Bg4 {[%emt 0:00:30]} Rfd6 {[%emt 0:00:30]} 26. Qe3 {[%emt 0:00:30]} Rxd1+ {[%emt 0:00:30]} 27. Rxd1 {[%emt 0:00:30]} Rxd1+ {[%emt 0:00:30]} 28. Bxd1 {[%emt 0:00:30]} Bxh4 {[%emt 0:00:30]} 29. c4 {[%emt 0:00:30]} Bf6 {[%emt 0:00:30]} 30. Qa7 {[%emt 0:00:30]} e4 {[%emt 0:00:30]} 31. Bxf6 {[%emt 0:00:30]} gxf6 {[%emt 0:00:30]} 32. f3 {[%emt 0:00:30]} f5 {[%emt 0:00:30]} 33. fxe4 {[%emt 0:00:30]} fxe4 {[%emt 0:00:30]} 34. Qd4 {[%emt 0:00:30]} Qe7 {[%emt 0:00:30]} 35. Bc2 {[%emt 0:00:30]} Nd3 {[%emt 0:00:30]} 36. Qd5+ {[%emt 0:00:30]} Kg7 {[%emt 0:00:30]} 37. Qxa5 {[%emt 0:00:30]} Qf6 {[%emt 0:00:30]} 38. Qc7+ {[%emt 0:00:30]} Qf7 {[%emt 0:00:30]} 39. Qd6 {[%emt 0:00:30]} Qf1+ {[%emt 0:00:30]} 40. Ka2 Qe2 {[%emt 0:00:30]} 41. Qg3+ {[%emt 0:01:00]} Kf6 {[%emt 0:00:30]} 42. Kb1 {[%emt 0:00:30]} Qf1+ {[%emt 0:00:30]} 43. Ka2 {[%emt 0:00:30]} Qe2 {[%emt 0:00:30]} 44. Kb1 {[%emt 0:00:30]} h5 {[%emt 0:00:30]} 45. Qh4+ {[%emt 0:00:30]} Kf5 {[%emt 0:00:30]} 46. a5 {[%emt 0:00:30]} Qe1+ {[%emt 0:00:30]} 47. Qxe1 {[%emt 0:00:30]} Nxe1 {[%emt 0:00:30]} 48. c5 {[%emt 0:00:30]} Nxc2 {[%emt 0:00:30]} 49. c6 {[%emt 0:00:30]} Na3+ {[%emt 0:00:30]} 50. Kb2 {[%emt 0:00:30]} bxc6 {[%emt 0:00:30]} 51. Kxa3 {[%emt 0:00:30]} e3 {[%emt 0:00:30]} 52. a6 {[%emt 0:00:30]} e2 53. a7 {[%emt 0:00:30]} e1=Q {[%emt 0:01:00]} 54. a8=Q {[%emt 0:00:30]} Qa1+ {[%emt 0:00:30]} 55. Kb4 {[%emt 0:00:30]} Qxa8 {[%emt 0:00:00]} 0-1

[Event "1000GM NY Winter IM-C 2024"]
[Site "New York"]
[Date "2024.01.12"]
[Round "2.6"]
[White "Pagan, Jonathan"]
[Black "Martin Del Campo Cardenas, Roberto Abel"]
[Result "0-1"]
[ECO "A45"]
[WhiteElo "2018"]
[BlackElo "2205"]
[Annotator "TA"]
[PlyCount "108"]
[EventDate "2024.01.10"]
[EventType "swiss"]
[EventCountry "USA"]
[SourceTitle "playchess.com"]
[Source "ChessBase"]
[SourceQuality "1"]
[TimeControl "5400+30"]

{[%evp 14,108,56,49,50,26,49,46,45,43,36,31,37,29,33,26,19,18,51,37,62,53,38,48,52,50,96,63,85,41,43,52,51,22,30,0,12,0,0,-2,2,0,0,0,11,0,0,-15,-14,-7,0,-10,0,-48,-45,-34,-39,-48,-50,-44,-52,-81,-68,-72,0,0,16,-13,-15,-331,0,0,0,-7,0,0,0,0,0,0,0,0,-8,-8,-8,-8,0,-1068,-959,-1586,-752,-1450,-918,-29964,-29951,-5273,-871]} 1. d4 {[%emt 0:00:03]} Nf6 {[%emt 0:01:40]} 2. Bg5 {[%emt 0:00:06]} c5 {[%emt 0:01:22]} 3. d5 {[%emt 0:00:37]} Ne4 {[%emt 0:01:29]} 4. Bf4 {[%emt 0:00:22]} Qb6 {[%emt 0:00:07]} 5. Bc1 {[%emt 0:00:19]} g6 {[%emt 0:04:25]} 6. f3 {[%emt 0:00:36]} Nf6 {[%emt 0:00:06] A45: Trompowsky Attack.} 7. e4 {[%emt 0:00:07]} d6 {[%emt 0:00:03]} 8. Ne2 {[%emt 0:06:25]} Bg7 {[%emt 0:00:55]} 9. Nec3 {[%emt 0:01:59]} O-O {[%emt 0:02:28]} 10. Nd2 {[%emt 0:03:23]} Na6 {[%emt 0:10:50]} 11. Nc4 {[%emt 0:02:21]} Qd8 {[%emt 0:01:24]} 12. Be2 {[%emt 0:00:49]} Nc7 {[%emt 0:00:08]} 13. a4 {[%emt 0:00:51]} b6 {[%emt 0:01:01]} 14. O-O {[%emt 0:00:37]} Ba6 {[%emt 0:00:15]} 15. Be3 $146 {[%emt 0:02:35]} ({Predecessor:} 15. f4 Rb8 16. Ne3 Bxe2 17. Qxe2 e6 18. Qd3 exd5 19. Nexd5 Ncxd5 20. Nxd5 Re8 21. Re1 Nxd5 22. Qxd5 {½-½ Harsha,B (2509)-Krassilnikov,E (2381) Titled Tuesday intern op 24th Aug blitz 2021 (4)}) 15... Bxc4 {[%emt 0:01:48]} 16. Bxc4 {[%emt 0:00:24]} a6 {[%emt 0:00:02]} 17. Qd2 {[%emt 0:23:27]} Rb8 {[%emt 0:19:33]} 18. Be2 {[%emt 0:02:32]} Rb7 {[%emt 0:04:54]} 19. Rab1 {[%emt 0:03:08]} b5 {[%emt 0:05:12]} (19... Qb8 $14) 20. b3 {[%emt 0:06:46]} Re8 {[%emt 0:04:03]} 21. Rbd1 {[%emt 0:06:02]} Qd7 {[%emt 0:04:12]} 22. Rfe1 {[%emt 0:03:15]} Reb8 {[%emt 0:04:01]} 23. g4 {[%emt 0:13:33]} Nfe8 {[%emt 0:03:12]} 24. axb5 {[%emt 0:01:07]} axb5 {[%emt 0:00:33]} 25. h3 {[%emt 0:05:30]} b4 {[%emt 0:01:13]} 26. Na4 {[%emt 0:00:12]} Nb5 {[%emt 0:00:18]} 27. Bxb5 {[%emt 0:00:19]} Qxb5 {[%emt 0:00:18]} 28. f4 {[%emt 0:01:04]} Rc8 {[%emt 0:02:44]} 29. Bf2 {[%emt 0:01:27]} Rd7 {[%emt 0:03:48]} 30. Qe2 {[%emt 0:02:19]} Qxe2 {[%emt 0:04:09]} 31. Rxe2 {[%emt 0:00:03]} Rb7 {[%emt 0:00:02]} 32. e5 {[%emt 0:00:35]} Nc7 {[%emt 0:02:01]} 33. exd6 {[%emt 0:04:25]} (33. Kg2 $11) 33... exd6 $15 {[%emt 0:00:03]} 34. Re7 {[%emt 0:00:19]} Rbb8 {[%emt 0:05:30]} 35. Rd7 {[%emt 0:00:45]} Nb5 {[%emt 0:01:06]} 36. Re1 {[%emt 0:02:59]} Rc7 {[%emt 0:01:55]} 37. Ree7 {[%emt 0:00:33]} Rxd7 {[%emt 0:01:47]} 38. Rxd7 {[%emt 0:00:04]} Kf8 {[%emt 0:05:51]} (38... Bd4 $17 {aiming for ...Kf8.} 39. Bxd4 cxd4) 39. Bh4 $1 $11 {[%emt 0:00:09]} Bh6 {[%emt 0:01:24]} 40. Bf6 {[%emt 0:05:22]} Bxf4 {[%emt 0:00:26]} 41. Nb2 $2 {[%emt 0:00:39][%mdl 8192] [#]} (41. Nb6 $11) 41... h5 $2 {[%emt 0:01:51]} (41... Be3+ $1 $19 42. Kg2 Bd4 43. Bxd4 cxd4 (43... Ke8 $2 44. Rxd6 Nxd6 45. Bxc5 $19)) 42. gxh5 $11 {[%emt 0:00:12]} gxh5 {[%emt 0:00:02]} 43. Nc4 {[%emt 0:00:43]} Re8 {[%emt 0:00:48]} 44. Kg2 {[%emt 0:00:31]} Kg8 {[%emt 0:00:52]} 45. Be7 {[%emt 0:01:28]} Nd4 {[%emt 0:00:33]} 46. Bxd6 {[%emt 0:01:02]} Re2+ {[%emt 0:00:38]} 47. Kf1 $1 {[%emt 0:00:21]} Bxd6 {[%emt 0:00:03]} 48. Nxd6 {[%emt 0:00:30]} Rxc2 {[%emt 0:00:02]} 49. Nxf7 {[%emt 0:00:47]} c4 {[%emt 0:00:13]} 50. d6 $2 {[%emt 0:01:11][%mdl 8192]} (50. Ng5 $11) 50... cxb3 $19 {[%emt 0:00:44]} 51. Nh6+ {[%emt 0:00:24] [#]} Kh8 $1 {[%emt 0:00:26]} ({Stronger than} 51... Kf8 52. Rf7+ Ke8 53. Re7+ Kf8 54. Rf7+ Ke8 55. Re7+ Kf8 56. Rf7+ $11) 52. Nf7+ {[%emt 0:00:28]} Kg7 {[%emt 0:00:07]} 53. Ne5+ {[%emt 0:00:18]} Kf6 {[%emt 0:00:04]} 54. Nd3 {[%emt 0:00:55]} b2 {[%emt 0:00:09]} (54... Rd2 $142 55. Nb2 Rxb2) 0-1

[Event "1000GM NY Winter IM-C 2024"]
[Site "New York"]
[Date "2024.01.12"]
[Round "2.7"]
[White "Gaw, Chloe"]
[Black "Rohde, Michael"]
[Result "1/2-1/2"]
[ECO "E93"]
[WhiteElo "1928"]
[BlackElo "2333"]
[Annotator "RC"]
[PlyCount "45"]
[EventDate "2024.01.10"]
[EventType "swiss"]
[EventCountry "USA"]
[SourceTitle "playchess.com"]
[Source "ChessBase"]
[SourceQuality "1"]
[TimeControl "5400+30"]

1. d4 {[%emt 0:15:26]} Nf6 {[%emt 0:00:09]} 2. c4 {[%emt 0:00:04]} d6 {[%emt 0:00:04]} 3. Nc3 {[%emt 0:00:05]} Nbd7 {[%emt 0:00:04]} 4. e4 {[%emt 0:00:04]} e5 {[%emt 0:00:04]} 5. d5 {[%emt 0:00:04]} Nc5 {[%emt 0:00:06]} 6. Qc2 {[%emt 0:00:05]} a5 {[%emt 0:00:03]} 7. Nf3 {[%emt 0:00:42]} g6 {[%emt 0:00:04]} 8. Be2 {[%emt 0:04:58]} Bg7 {[%emt 0:00:10]} 9. h3 {[%emt 0:00:06]} O-O {[%emt 0:04:54]} 10. Bg5 {[%emt 0:00:26]} h6 {[%emt 0:02:09]} 11. Be3 {[%emt 0:00:04]} Ne8 {[%emt 0:00:12]} 12. g4 {[%emt 0:01:34]} f5 {[%emt 0:03:30]} 13. gxf5 {[%emt 0:05:56]} gxf5 {[%emt 0:03:27]} 14. Rg1 {[%emt 0:00:13]} Qf6 {[%emt 0:00:04]} 15. O-O-O {[%emt 0:00:09]} f4 {[%emt 0:00:07]} 16. Bxc5 {[%emt 0:00:06]} dxc5 {[%emt 0:00:08]} 17. h4 {[%emt 0:00:11]} Ra6 {[%emt 0:03:33]} 18. Rg2 {[%emt 0:00:16]} Bh3 {[%emt 0:00:13]} 19. Rh2 {[%emt 0:00:04]} Bg4 {[%emt 0:00:06]} 20. h5 {[%emt 0:03:09]} Nd6 {[%emt 0:00:06]} 21. Rg1 {[%emt 0:00:06]} Bxf3 {[%emt 0:00:13]} 22. Bxf3 {[%emt 0:00:11]} Nf7 {[%emt 0:00:10]} 23. Rg6 {[%emt 0:00:10]} 1/2-1/2

[Event "1000GM NY Winter IM-C 2024"]
[Site "New York"]
[Date "2024.01.12"]
[Round "2.8"]
[White "Mou, Iris"]
[Black "Almeida Saenz, Alfonso"]
[Result "1-0"]
[ECO "B30"]
[WhiteElo "2128"]
[BlackElo "2222"]
[Annotator "RC"]
[PlyCount "37"]
[EventDate "2024.01.10"]
[EventType "swiss"]
[EventCountry "USA"]
[SourceTitle "playchess.com"]
[Source "ChessBase"]
[SourceQuality "1"]
[TimeControl "5400+30"]

1. e4 {[%emt 0:00:04]} c5 {[%emt 0:00:36]} 2. Nf3 {[%emt 0:00:11]} Nc6 {[%emt 0:00:06]} 3. Bb5 {[%emt 0:00:07]} Qb6 {[%emt 0:00:45]} 4. Bxc6 {[%emt 0:00:29]} Qxc6 {[%emt 0:00:07]} 5. O-O {[%emt 0:00:17]} Qxe4 {[%emt 0:02:42]} 6. Nc3 {[%emt 0:03:53]} Qc6 {[%emt 0:00:10]} 7. d4 {[%emt 0:08:16]} e6 {[%emt 0:00:39]} 8. Ne5 {[%emt 0:09:18]} Qa6 {[%emt 0:02:24]} 9. Qh5 {[%emt 0:11:41]} g6 {[%emt 0:00:07]} 10. Nxg6 {[%emt 0:01:29]} Nf6 {[%emt 0:06:55]} 11. Qh4 {[%emt 0:02:33]} fxg6 {[%emt 0:01:32]} 12. Qxf6 {[%emt 0:00:09]} Rg8 {[%emt 0:00:31]} 13. Bg5 {[%emt 0:12:02]} h6 {[%emt 0:01:44]} 14. Bh4 {[%emt 0:12:10]} cxd4 {[%emt 0:03:25]} 15. Nd5 {[%emt 0:10:01]} Qc6 {[%emt 0:18:10]} 16. Ne7 {[%emt 0:01:06]} Qe4 {[%emt 0:02:17]} 17. Rfe1 {[%emt 0:07:01]} Bg7 {[%emt 0:00:35]} 18. Rxe4 {[%emt 0:00:29]} Bxf6 {[%emt 0:00:02]} 19. Nxg8 {[%emt 0:00:10]} 1-0

[Event "1000GM NY Winter IM-C 2024"]
[Site "New York"]
[Date "2024.01.12"]
[Round "2.9"]
[White "Kovalchuk, Igor"]
[Black "Venkatesh, Narayan"]
[Result "1/2-1/2"]
[ECO "D58"]
[WhiteElo "2030"]
[BlackElo "1965"]
[Annotator "TA"]
[PlyCount "27"]
[EventDate "2024.01.10"]
[EventType "swiss"]
[EventCountry "USA"]
[SourceTitle "playchess.com"]
[Source "ChessBase"]
[SourceQuality "1"]
[TimeControl "5400+30"]

{[%evp 18,27,3,4,12,-21,-26,-3,14,20,44,45]} 1. d4 {[%emt 0:00:30]} Nf6 {[%emt 0:10:17]} 2. Nf3 {[%emt 0:00:00]} d5 {[%emt 0:00:08]} 3. c4 {[%emt 0:00:00]} e6 {[%emt 0:00:06]} 4. Bg5 {[%emt 0:00:01]} Be7 {[%emt 0:02:35]} 5. Nc3 {[%emt 0:00:40]} h6 {[%emt 0:02:25]} 6. Bh4 {[%emt 0:03:26]} O-O {[%emt 0:01:34]} 7. e3 {[%emt 0:00:11]} b6 {[%emt 0:04:45]} 8. cxd5 {[%emt 1:29:42]} exd5 {[%emt 0:12:03]} 9. Ne5 {[%emt 0:00:00]} Bb7 {[%emt 0:01:42]} 10. Bd3 {[%emt 0:00:00]} Nbd7 {[%emt 0:07:10]} 11. O-O {[%emt 0:00:00]} Nxe5 {[%emt 0:14:42]} 12. dxe5 {[%emt 0:00:00]} Nd7 {[%emt 0:00:16]} 13. Bg3 {[%emt 0:00:00]} Re8 {[%emt 0:04:47]} 14. Qh5 {[%emt 0:03:00] Gewichteter Fehlerwert: Weiß=0.12 (sehr präzise) /Schwarz=0.09 (makellos) .  Ungenau:       	Weiß=1     	---        OK:         	Weiß=1     	---        Bester:       	---       	Schwarz=1} 1/2-1/2

[Event "1000GM NY Winter IM-C 2024"]
[Site "New York"]
[Date "2024.01.13"]
[Round "3.1"]
[White "Goktepe, Derin"]
[Black "Bonin, Jay"]
[Result "1/2-1/2"]
[ECO "D76"]
[WhiteElo "2187"]
[BlackElo "2166"]
[Annotator "RC"]
[PlyCount "84"]
[EventDate "2024.01.10"]
[EventType "swiss"]
[EventCountry "USA"]
[SourceTitle "playchess.com"]
[Source "ChessBase"]
[SourceQuality "1"]
[TimeControl "5400+30"]

1. d4 {[%emt 0:00:12]} Nf6 {[%emt 0:00:10]} 2. c4 {[%emt 0:00:14]} g6 {[%emt 0:00:17]} 3. Nf3 {[%emt 0:00:46]} Bg7 {[%emt 0:00:16]} 4. g3 {[%emt 0:00:20]} O-O {[%emt 0:00:16]} 5. Bg2 {[%emt 0:00:21]} d5 {[%emt 0:00:17]} 6. cxd5 {[%emt 0:01:11]} Nxd5 {[%emt 0:00:16]} 7. O-O {[%emt 0:01:52]} Nc6 {[%emt 0:00:20]} 8. Nc3 {[%emt 0:04:49]} Nb6 {[%emt 0:00:14]} 9. d5 {[%emt 0:07:34]} Na5 {[%emt 0:00:12]} 10. e4 {[%emt 0:01:33]} c6 {[%emt 0:00:39]} 11. Bf4 {[%emt 0:14:52]} cxd5 {[%emt 0:08:33]} 12. Nxd5 {[%emt 0:08:47]} Nxd5 {[%emt 0:01:12]} 13. exd5 {[%emt 0:02:14]} Nc4 {[%emt 0:03:50]} 14. Qb3 {[%emt 0:05:59]} Nd6 {[%emt 0:02:33]} 15. Be5 {[%emt 0:03:57]} Bxe5 {[%emt 0:04:45]} 16. Nxe5 {[%emt 0:00:05]} Bd7 {[%emt 0:02:10]} 17. Rac1 {[%emt 0:04:11]} Bb5 {[%emt 0:00:28]} 18. Rfe1 {[%emt 0:01:44]} Qa5 {[%emt 0:01:07]} 19. Bh3 {[%emt 0:04:41]} Qd2 {[%emt 0:10:38]} 20. a4 {[%emt 0:06:29]} Ba6 {[%emt 0:03:52]} 21. Nd7 {[%emt 0:03:39]} Rfc8 {[%emt 0:02:13]} 22. Rcd1 {[%emt 0:05:50]} Qh6 {[%emt 0:04:28]} 23. Bg2 {[%emt 0:01:14]} Nf5 {[%emt 0:05:19]} 24. f4 {[%emt 0:03:07]} Rc7 {[%emt 0:00:50]} 25. Ne5 {[%emt 0:01:06]} Nd6 {[%emt 0:05:32]} 26. Rc1 {[%emt 0:01:25]} Rac8 {[%emt 0:01:15]} 27. Rxc7 {[%emt 0:15:48]} Rxc7 {[%emt 0:00:03]} 28. Qe3 {[%emt 0:00:00]} Qf8 {[%emt 0:03:16]} 29. b4 {[%emt 0:01:00]} f6 {[%emt 0:01:49]} 30. b5 {[%emt 0:00:00]} fxe5 {[%emt 0:00:50]} 31. fxe5 {[%emt 0:00:00]} Nc4 {[%emt 0:01:20]} 32. Qd4 {[%emt 0:00:00]} Bxb5 {[%emt 0:04:10]} 33. axb5 {[%emt 0:00:00]} Nb6 {[%emt 0:00:14]} 34. d6 {[%emt 0:00:00]} exd6 {[%emt 0:00:11]} 35. exd6 {[%emt 0:00:00]} Rd7 {[%emt 0:00:05]} 36. Bh3 {[%emt 0:00:00]} Qxd6 {[%emt 0:00:23]} 37. Qxd6 {[%emt 0:00:00]} Rxd6 {[%emt 0:00:15]} 38. Re7 {[%emt 0:00:00]} Rd1+ {[%emt 0:01:38]} 39. Kg2 {[%emt 0:00:00]} Rd2+ {[%emt 0:00:24]} 40. Kf3 {[%emt 0:00:00]} Rxh2 {[%emt 0:01:04]} 41. Be6+ {[%emt 0:00:43]} Kh8 {[%emt 0:01:10]} 42. Rxb7 {[%emt 0:00:22]} Rb2 {[%emt 0:00:36]} 1/2-1/2

[Event "1000GM NY Winter IM-C 2024"]
[Site "New York"]
[Date "2024.01.13"]
[Round "3.2"]
[White "Yoo, Eugene"]
[Black "Yudasin, Leonid"]
[Result "1/2-1/2"]
[ECO "E20"]
[WhiteElo "2168"]
[BlackElo "2353"]
[Annotator "TA"]
[PlyCount "78"]
[EventDate "2024.01.10"]
[EventType "swiss"]
[EventCountry "USA"]
[SourceTitle "playchess.com"]
[Source "ChessBase"]
[SourceQuality "1"]
[TimeControl "5400+30"]

{[%evp 10,78,31,34,14,18,25,0,0,-18,-21,-17,-16,-12,50,-20,-41,-27,0,0,0,0,0,0,0,0,3,11,45,52,41,36,41,39,37,44,37,12,11,14,11,8,8,10,4,8,8,3,23,16,16,20,25,5,21,30,37,8,8,8,8,8,8,0,0,0,0,0,0,0,0]} 1. d4 {[%emt 0:01:55]} Nf6 {[%emt 0:00:06]} 2. c4 {[%emt 0:00:42]} e6 {[%emt 0:00:11]} 3. Nc3 {[%emt 0:00:06]} Bb4 {[%emt 0:00:07]} 4. f3 {[%emt 0:00:15]} d5 {[%emt 0:00:23]} 5. a3 {[%emt 0:00:22]} Bd6 {[%emt 0:00:11]} 6. e4 {[%emt 0:01:12]} c5 {[%emt 0:01:45]} 7. dxc5 {[%emt 0:05:45]} Bxc5 {[%emt 0:02:52]} 8. b4 {[%emt 0:03:08]} Bd6 {[%emt 0:13:33]} 9. Bg5 {[%emt 0:23:04][%cal Rc4d5]} h6 {[%emt 0:06:07]} 10. Bh4 {[%emt 0:00:26][%cal Re4d5]} a5 {[%emt 0:09:43]} 11. cxd5 {[%emt 0:13:25]} axb4 {[%emt 0:03:14]} (11... O-O $11 12. b5 exd5) 12. axb4 {[%emt 0:01:51]} (12. Bb5+ $14 Bd7 13. Bxd7+ (13. dxe6 Bxb5 14. Nxb5 Be5 $16) 13... Nbxd7 (13... Qxd7 14. axb4 Rxa1 15. Qxa1 $14) 14. dxe6) 12... Rxa1 $11 {[%emt 0:00:19]} 13. Qxa1 {[%emt 0:00:57]} Bxb4 {[%emt 0:00:34] [#] ...0-0 is the strong threat.} 14. Bb5+ {[%emt 0:05:14]} ({Don't play} 14. Bxf6 Qxf6 15. Bb5+ Nd7 $17 (15... Bd7 16. Bxd7+ Nxd7 17. Nge2 $15)) 14... Bd7 {[%emt 0:02:58]} 15. Bxd7+ {[%emt 0:00:31]} Nbxd7 {[%emt 0:01:43]} 16. dxe6 {[%emt 0:01:23]} fxe6 {[%emt 0:05:16] Strongly threatening ...Nc5.} 17. Nge2 {[%emt 0:00:11]} O-O {[%emt 0:11:24][%cal Bh8f8,Bf8c8,Bc8c2,Bc2b2,Bb2b4,Bb4a4,Ba4a1][%mdl 32]} 18. O-O {[%emt 0:01:24]} Qa5 {[%emt 0:05:33]} 19. Qxa5 {[%emt 0:05:18]} Bxa5 {[%emt 0:01:35]} 20. Bf2 {[%emt 0:05:27]} Rc8 {[%emt 0:01:58]} 21. Nb5 {[%emt 0:03:05]} Rc2 {[%emt 0:04:00]} 22. Ned4 {[%emt 0:01:15][%csl LRc2,LRe6]} Rb2 {[%emt 0:00:52] [#] White must now prevent ...e5.} 23. Nd6 {[%emt 0:02:03][%cal Od6c4] Threatens to win with Nc4!} Bc7 {[%emt 0:05:54]} 24. Nc4 {[%emt 0:01:50]} Rb4 {[%emt 0:00:28] Hoping for ...e5.} 25. Rc1 {[%emt 0:00:37]} Bf4 {[%emt 0:00:41]} 26. Be1 $1 {[%emt 0:01:21]} Ra4 {[%emt 0:03:17]} 27. Rc3 {[%emt 0:03:22]} Ra1 {[%emt 0:03:33]} 28. Nc2 {[%emt 0:03:12]} Rc1 {[%emt 0:02:08]} 29. g3 {[%emt 0:01:29]} Bb8 {[%emt 0:05:50]} 30. Kf2 {[%emt 0:00:01]} Kf7 {[%emt 0:01:10]} 31. Nd4 {[%emt 0:03:20]} Rxc3 {[%emt 0:01:20]} 32. Bxc3 {[%emt 0:00:01]} Ne5 {[%emt 0:01:26]} 33. Nxe5+ {[%emt 0:02:08]} Bxe5 $14 {[%emt 0:00:08][%mdl 4096] Endgame. KBN-KBN. The position is equal.} 34. Ke3 {[%emt 0:00:00]} h5 {[%emt 0:01:06]} 35. Kd3 {[%emt 0:01:45]} h4 {[%emt 0:00:31]} 36. f4 {[%emt 0:00:57]} Bxd4 {[%emt 0:01:39]} 37. Bxd4 {[%emt 0:00:27]} hxg3 {[%emt 0:00:05]} 38. hxg3 {[%emt 0:00:01]} Nd7 {[%emt 0:00:42]} 39. Ke3 {[%emt 0:03:48]} g6 {[%emt 0:05:38] Weighted Error Value: White=0.07 (flawless) /Black=0.08 (flawless) .  Mistake:       	White=1     	Black=1      Inaccurate:     	White=1     	Black=2      OK:         	White=14    	Black=17     Best:        	White=1     	Black=1      Strong:       	White=1     	---} 1/2-1/2

[Event "1000GM NY Winter IM-C 2024"]
[Site "New York"]
[Date "2024.01.12"]
[Round "3.2"]
[White "Yoo, Eugene"]
[Black "Yudasin, Leonid"]
[Result "*"]
[ECO "E20"]
[WhiteElo "2168"]
[BlackElo "2353"]
[Annotator "RC"]
[PlyCount "40"]
[EventDate "2024.01.10"]
[EventType "swiss"]
[EventCountry "USA"]
[SourceTitle "playchess.com"]
[Source "ChessBase"]
[SourceQuality "1"]
[TimeControl "5400+30"]

1. d4 {[%emt 0:01:55]} Nf6 {[%emt 0:00:06]} 2. c4 {[%emt 0:00:42]} e6 {[%emt 1:31:24]} 3. Nc3 {[%emt 0:00:06]} Bb4 {[%emt 0:00:07]} 4. f3 {[%emt 0:00:15]} d5 {[%emt 0:00:23]} 5. a3 {[%emt 0:00:22]} Bd6 {[%emt 0:00:11]} 6. e4 {[%emt 0:01:12]} c5 {[%emt 0:01:45]} 7. dxc5 {[%emt 0:05:45]} Bxc5 {[%emt 0:02:52]} 8. b4 {[%emt 0:03:08]} Bd6 {[%emt 0:13:33]} 9. Bg5 {[%emt 0:23:04]} h6 {[%emt 0:06:07]} 10. Bh4 {[%emt 0:00:26]} a5 {[%emt 1:10:15]} 11. cxd5 {[%emt 0:13:25]} axb4 {[%emt 1:01:02]} 12. axb4 {[%emt 0:01:51]} Rxa1 {[%emt 0:00:19]} 13. Qxa1 {[%emt 0:00:57]} Bxb4 {[%emt 0:00:34]} 14. Bb5+ {[%emt 0:05:14]} Bd7 {[%emt 0:02:58]} 15. Bxd7+ {[%emt 0:00:31]} Nbxd7 {[%emt 0:55:57]} 16. dxe6 {[%emt 0:01:23]} fxe6 {[%emt 0:54:44]} 17. Nge2 {[%emt 0:00:11]} O-O {[%emt 0:11:24]} 18. O-O {[%emt 0:01:24]} Qa5 {[%emt 0:39:04]} 19. Qa3 {[%emt 0:38:09]} Qa4 20. Qxa4 {[%emt 0:00:00]} Ba5 {[%emt 0:02:05]} *